bitfinex/quotes_ETHUSD_20241013
["timestamp","ask_amount","ask_price","bid_price","bid_amount"]
[1728841418402,4.08569,2447.6,2447.1,0.00664902]
[1728841419302,3.0,2447.9,2447.3,4.08611]
[1728841419536,3.0,2447.9,2447.3,4.08603]
[1728841419751,7.08524,2447.9,2447.2,0.8041]
[1728841420038,3.0,2447.9,2447.3,4.08602]
[1728841420197,4.08503,2448.0,2447.3,4.08602]
[1728841420398,4.08503,2448.0,2447.4,4.08588]
[1728841420638,8.2543,2448.1,2447.5,4.08574]
[1728841420639,12.33912,2448.1,2447.5,4.08574]
[1728841420834,12.33912,2448.1,2447.4,4.08588]
[1728841421038,12.33912,2448.1,2447.4,8.17175]
[1728841421338,16.42404,2448.1,2447.4,4.08587]
[1728841421540,4.08496,2448.0,2447.4,4.08587]
[1728841422037,11.52482,2448.1,2447.5,4.08564]
[1728841422242,7.44,2448.1,2447.6,4.08562]
[1728841422539,7.44,2448.1,2447.6,8.17105]
[1728841422901,7.44,2448.1,2447.7,4.08546]
[1728841423328,7.44,2448.1,2447.6,4.08551]
[1728841423854,7.44,2448.1,2447.6,8.17104]
[1728841424426,7.44,2448.1,2447.7,0.8041]
[1728841424864,7.44,2448.1,2447.7,4.88954]
[1728841425027,0.42706198,2448.3,2447.9,4.08511]
[1728841425229,0.8143,2448.4,2447.9,4.08511]
[1728841425953,0.8143,2448.4,2447.9,8.17015]
[1728841426132,0.8143,2448.4,2447.9,8.17008]
[1728841426329,0.8143,2448.4,2448.0,4.0849]
[1728841426542,4.08413,2448.5,2448.0,4.0849]
[1728841426955,3.0,2448.6,2448.0,4.0849]
[1728841427158,3.0,2448.6,2447.9,4.08504]
[1728841427159,3.0,2448.6,2448.1,4.08478]
[1728841427362,7.08402,2448.6,2448.1,4.08478]
[1728841427730,4.89819,2448.7,2448.3,0.8041]
[1728841427731,4.08389,2448.7,2448.3,0.8041]
[1728841428081,4.08356,2448.9,2448.4,4.08427]
[1728841428434,4.08356,2448.9,2448.3,4.88848]
[1728841428435,4.08356,2448.9,2448.3,8.97284]
[1728841428770,4.08356,2448.9,2448.4,4.08422]
[1728841428941,4.8976,2449.0,2448.5,4.08412]
[1728841429331,3.0,2448.9,2448.5,4.08412]
[1728841429532,0.8143,2449.0,2448.6,4.08389]
[1728841429732,4.51021072,2449.1,2448.6,4.08389]
[1728841429971,0.42698072,2449.1,2448.7,4.08379]
[1728841430759,0.42698072,2449.1,2448.8,4.0836]
[1728841430962,3.0,2449.2,2448.8,4.0836]
[1728841431162,4.0829,2449.3,2448.9,0.8041]
[1728841431669,8.16585,2449.3,2448.9,0.8041]
[1728841432070,8.16583,2449.3,2448.9,0.8041]
[1728841432307,8.16583,2449.3,2448.7,4.08371]
[1728841432308,4.08314,2449.1,2448.7,4.08371]
[1728841432601,4.08314,2449.1,2448.6,0.8041]
[1728841432764,4.08314,2449.1,2448.6,4.88797]
[1728841433460,4.0834,2449.0,2448.6,0.8041]
[1728841433659,3.0,2448.9,2448.0,0.8041]
[1728841433861,4.08406,2448.6,2448.0,4.88897]
[1728841434097,8.16816,2448.6,2448.0,4.88897]
[1728841434273,4.08406,2448.6,2448.0,4.88897]
[1728841434477,4.08413,2448.5,2448.0,4.88897]
[1728841434689,4.08406,2448.6,2448.0,4.88897]
[1728841434893,4.08457,2448.3,2447.4,4.08585]
[1728841435069,4.08457,2448.3,2447.6,4.08555]
[1728841435499,4.08465,2448.2,2447.6,4.08555]
[1728841436162,4.08457,2448.3,2447.6,4.08555]
[1728841436977,4.08465,2448.2,2447.6,4.08555]
[1728841437200,4.08465,2448.2,2447.7,0.7791]
[1728841438270,4.08482,2448.1,2447.7,0.7791]
[1728841438970,8.1697,2448.1,2447.7,0.7791]
[1728841439171,4.08482,2448.1,2447.7,0.7791]
[1728841439373,4.08465,2448.2,2447.7,0.7791]
[1728841439601,4.08492,2448.1,2447.7,0.7791]
[1728841439798,4.08514,2447.9,2447.7,0.7791]
[1728841440109,4.08548,2447.7,2447.2,5.3550049]
[1728841440313,8.17047,2447.9,2447.3,4.0861]
[1728841440476,4.08523,2447.9,2447.4,4.08595]
[1728841440674,0.8273,2448.1,2447.4,0.94409549]
[1728841440878,4.08489,2448.1,2447.6,0.7791]
[1728841441209,4.085,2448.0,2447.6,0.7791]
[1728841441715,4.08473,2448.2,2447.6,4.86471]
[1728841442013,4.08473,2448.2,2447.6,0.7791]
[1728841442316,4.08473,2448.2,2447.6,5.85421055]
[1728841443017,4.08473,2448.2,2447.6,1.76859055]
[1728841443018,4.08488,2448.1,2447.6,1.76859055]
[1728841445848,4.08473,2448.2,2447.6,1.83138415]
[1728841446640,4.08473,2448.2,2447.6,5.91697415]
[1728841446843,4.08545,2447.8,2447.6,0.0627936]
[1728841447043,4.08546,2447.7,2447.6,0.0627936]
[1728841447743,4.91276,2447.7,2447.6,0.0627936]
[1728841448136,11.42423887,2447.7,2447.6,0.0627936]
[1728841449561,11.42423887,2447.7,2447.1,0.00664902]
[1728841449562,7.9136,2447.2,2447.1,0.00664902]
[1728841449713,11.42507887,2447.2,2447.1,0.00664902]
[1728841450125,14.93655774,2447.2,2447.1,0.00664902]
[1728841450367,4.08814,2446.1,2446.0,0.005]
[1728841450846,0.8273,2446.6,2446.0,0.005]
[1728841451255,4.08786,2446.3,2446.0,0.005]
[1728841451410,4.08807,2446.2,2446.0,0.005]
[1728841451949,4.08786,2446.3,2446.0,0.005]
[1728841452124,4.08797,2446.2,2446.0,0.005]
[1728841452315,4.08786,2446.3,2446.0,0.005]
[1728841452746,8.17514,2446.5,2446.0,0.005]
[1728841452949,4.08767,2446.4,2446.0,0.005]
[1728841453109,0.8273,2446.6,2446.0,0.005]
[1728841453362,3.8273,2446.6,2446.0,0.005]
[1728841453895,7.91464,2446.6,2446.0,0.005]
[1728841454373,4.08748,2446.5,2446.0,0.005]
[1728841454974,3.8273,2446.6,2446.0,0.005]
[1728841455182,3.8273,2446.6,2446.0,0.7841]
[1728841455404,4.91417,2446.9,2446.1,4.08811]
[1728841455591,4.91417,2446.9,2446.2,4.08788]
[1728841457189,4.91417,2446.9,2446.1,4.08805]
[1728841457716,4.91417,2446.9,2446.2,4.08781]
[1728841458573,4.91417,2446.9,2446.1,4.08805]
[1728841458574,4.08687,2446.9,2446.3,4.08779]
[1728841458777,4.08666,2447.0,2446.3,4.08779]
[1728841459017,3.0,2447.0,2446.6,4.08729]
[1728841459317,4.08648,2447.1,2446.6,4.08729]
[1728841459530,0.807,2447.2,2446.6,4.08719]
[1728841459687,4.08619,2447.3,2446.7,4.0871]
[1728841460033,4.08619,2447.3,2446.6,4.08719]
[1728841460034,4.08619,2447.3,2446.8,4.08696]
[1728841460833,4.08597,2447.4,2446.9,4.0868]
[1728841461129,4.08623,2447.3,2446.8,4.08696]
[1728841461485,3.51147887,2447.4,2446.5,0.7526]
[1728841461688,4.08682,2446.9,2446.5,0.7526]
[1728841462048,4.08706,2446.8,2446.5,0.7526]
[1728841463386,8.17375,2446.9,2446.5,0.7526]
[1728841463732,4.08682,2446.9,2446.5,0.7526]
[1728841463930,8.17312,2447.1,2446.5,4.84006]
[1728841464132,7.08664,2447.0,2446.5,4.84006]
[1728841464291,4.08664,2447.0,2446.5,0.7526]
[1728841464493,4.08664,2447.0,2446.5,4.84007]
[1728841464900,4.08664,2447.0,2446.5,0.7526]
[1728841465116,4.08664,2447.0,2446.5,4.83995]
[1728841465496,4.08664,2447.0,2446.5,0.7526]
[1728841465497,4.08684,2446.9,2446.5,0.7526]
[1728841465692,4.08703,2446.8,2446.5,0.7526]
[1728841467537,0.42705419,2447.2,2446.5,4.83995]
[1728841467538,4.08664,2447.0,2446.5,4.83995]
[1728841468329,4.08681,2446.9,2446.5,0.7526]
[1728841469540,56.087,2446.8,2446.5,0.7526]
[1728841469712,52.0,2446.8,2446.5,0.7526]
[1728841471217,52.0,2446.8,2446.6,4.08718]
[1728841471528,52.0,2446.8,2446.4,4.08751]
[1728841471924,52.0,2446.8,2446.3,4.08773]
[1728841471925,56.08698,2446.8,2446.3,4.08773]
[1728841473913,56.08698,2446.8,2446.4,4.08762]
[1728841473914,52.0,2446.8,2446.4,4.08762]
[1728841474458,52.0,2446.8,2446.5,4.84002]
[1728841474635,52.0,2446.8,2446.4,0.408762]
[1728841474636,52.0,2446.8,2446.7,4.08713]
[1728841474820,52.0,2446.8,2446.7,4.83973]
[1728841476623,52.0,2446.8,2446.7,4.92146355]
[1728841477154,52.0,2446.8,2446.7,4.83973]
[1728841477375,52.0,2446.8,2446.7,6.08356489]
[1728841477520,52.0,2446.8,2446.7,6.63356489]
[1728841478414,51.14665396,2446.8,2446.7,6.71529546]
[1728841478932,51.14665396,2446.8,2446.7,6.63356489]
[1728841480264,51.14665396,2446.8,2446.7,6.7152955]
[1728841480621,50.60384205,2446.8,2446.7,6.7152955]
[1728841481053,49.08693595,2446.8,2446.7,6.63356489]
[1728841485241,33.11243089,2446.8,2446.7,6.63356489]
[1728841485441,11.51293526,2446.8,2446.7,15.79166959]
[1728841485642,11.51293526,2446.8,2446.7,16.21889207]
[1728841485643,9.23782736,2446.8,2446.7,16.21889207]
[1728841485848,9.23782736,2446.8,2446.7,15.38242983]
[1728841486033,9.23782736,2446.8,2446.7,17.08977525]
[1728841486228,9.23782736,2446.8,2446.7,15.38242983]
[1728841486434,9.23782736,2446.8,2446.7,17.51509089]
[1728841486734,9.23782736,2446.8,2446.7,15.38242983]
[1728841487029,9.23782736,2446.8,2446.7,17.51509089]
[1728841487231,0.7694,2448.3,2447.8,4.08528]
[1728841488173,0.7694,2448.3,2447.8,4.08522]
[1728841488372,1.663221,2448.3,2447.8,4.08522]
[1728841488571,5.747681,2448.3,2447.8,4.08522]
[1728841488936,1.663221,2448.3,2448.0,4.08495]
[1728841489132,1.663221,2448.3,2447.8,4.08522]
[1728841489472,1.663221,2448.3,2447.8,8.17042]
[1728841489834,1.663221,2448.3,2447.9,4.08511]
[1728841490031,0.7694,2448.3,2448.0,4.08488]
[1728841490245,0.7694,2448.3,2448.1,4.08476]
[1728841494854,0.7694,2448.3,2448.1,4.08471]
[1728841495178,0.7694,2448.3,2448.0,4.08495]
[1728841496282,4.84585,2448.5,2448.0,4.08495]
[1728841497676,8.93008,2448.5,2448.0,4.08495]
[1728841497976,4.84585,2448.5,2448.0,4.08495]
[1728841499252,8.93008,2448.5,2448.0,4.08495]
[1728841500174,4.84585,2448.5,2448.0,4.08495]
[1728841500803,4.0844,2448.4,2447.9,4.08513]
[1728841501546,4.0844,2448.4,2447.9,8.17018]
[1728841501741,4.0844,2448.4,2448.0,4.08496]
[1728841501942,0.7617,2448.5,2448.2,4.08461]
[1728841502472,4.08437,2448.4,2448.0,4.08486]
[1728841502638,4.08437,2448.4,2447.9,4.08512]
[1728841503253,4.08448,2448.3,2447.9,4.08512]
[1728841503486,4.08448,2448.3,2447.6,7.59696887]
[1728841503671,3.4095,2448.9,2447.6,7.59696887]
[1728841503672,4.08321,2449.1,2448.2,0.8154]
[1728841503857,4.08321,2449.1,2448.6,4.08389]
[1728841504182,4.491691,2449.0,2448.3,8.16868]
[1728841504384,4.84529,2448.9,2448.3,4.08434]
[1728841505083,4.84529,2448.9,2448.3,8.16872]
[1728841505257,0.7617,2448.9,2448.3,4.08434]
[1728841505454,0.7617,2448.9,2448.4,4.08428]
[1728841505643,1.2870391,2448.9,2448.4,4.08428]
[1728841505883,0.7617,2448.9,2448.5,4.08411]
[1728841508033,0.7617,2448.9,2448.5,8.16811]
[1728841508432,0.7617,2448.9,2448.7,4.08379]
[1728841508639,0.7617,2449.3,2448.4,3.51147887]
[1728841508938,0.7617,2449.3,2448.9,4.08336]
[1728841509105,1.58881375,2449.3,2448.9,4.08336]
[1728841509305,1.58881375,2449.3,2449.0,4.08323]
[1728841509497,0.42680751,2449.4,2449.2,4.08294]
[1728841509730,0.7617,2449.5,2449.2,4.08294]
[1728841509931,0.7617,2449.5,2449.2,4.08286]
[1728841510927,4.84417,2449.5,2449.0,8.16642]
[1728841511628,4.84417,2449.5,2449.1,4.08304]
[1728841511629,0.7617,2449.5,2449.1,4.08304]
[1728841512039,10.44,2449.9,2449.0,4.0832]
[1728841512040,0.7617,2449.8,2449.3,4.08267]
[1728841512246,1.246062,2449.8,2449.2,4.08291]
[1728841512469,5.328042,2449.8,2449.3,4.08278]
[1728841512678,1.246062,2449.8,2449.4,4.0826]
[1728841513244,1.246062,2449.8,2449.4,4.08255]
[1728841513437,1.246062,2449.8,2449.2,0.8154]
[1728841513641,1.246062,2449.8,2449.3,4.08266]
[1728841513845,0.7617,2449.8,2449.5,4.08243]
[1728841514145,0.7617,2450.0,2449.5,4.08243]
[1728841514585,0.42682745,2450.1,2449.6,3.51147887]
[1728841514729,4.08089,2450.5,2450.0,4.08161]
[1728841514931,0.7617,2450.6,2450.0,4.08154]
[1728841514932,4.84238,2450.6,2450.0,4.08154]
[1728841515174,0.7617,2450.6,2450.2,4.08129]
[1728841515828,0.7617,2450.6,2450.0,4.08161]
[1728841516065,4.84243,2450.6,2450.0,4.08153]
[1728841516267,0.7617,2450.6,2450.0,4.08153]
[1728841516444,0.7617,2450.6,2450.2,4.08128]
[1728841516641,4.07994,2451.1,2450.5,4.08077]
[1728841516868,4.08002,2451.0,2450.5,4.08077]
[1728841517177,4.08105,2450.4,2449.8,4.08186]
[1728841517764,4.08105,2450.4,2449.9,4.08174]
[1728841517967,4.08105,2450.4,2449.8,4.08186]
[1728841518273,0.7873,2450.5,2449.8,4.08184]
[1728841518444,0.7873,2450.5,2450.0,8.16307]
[1728841518445,4.86813,2450.5,2450.0,8.16307]
[1728841518829,4.86813,2450.5,2450.0,4.08153]
[1728841519033,4.86813,2450.5,2449.8,8.16372]
[1728841519373,4.86813,2450.5,2449.8,4.08182]
[1728841519533,8.94909,2450.5,2449.9,4.08168]
[1728841519745,4.86813,2450.5,2449.9,4.08168]
[1728841520580,4.08083,2450.5,2450.0,4.0815]
[1728841520920,0.7873,2450.4,2449.9,4.08168]
[1728841521631,4.86826,2450.4,2449.9,4.08168]
[1728841522079,0.7873,2450.4,2450.0,4.08148]
[1728841523857,0.7873,2450.4,2449.9,4.08168]
[1728841524062,4.86827,2450.4,2449.9,4.08168]
[1728841524264,0.7873,2450.4,2449.9,4.08168]
[1728841524477,0.7873,2450.4,2449.9,8.16336]
[1728841525971,1.274113,2450.4,2449.9,8.16336]
[1728841527500,1.274113,2450.4,2449.9,8.16339]
[1728841527682,4.08133,2450.2,2449.6,4.08228]
[1728841527882,4.90458,2450.1,2449.6,4.08228]
[1728841528802,4.08221,2449.7,2449.1,4.08311]
[1728841529090,4.08221,2449.7,2449.1,4.08301]
[1728841529091,1.231321,2449.6,2449.1,4.08301]
[1728841529256,4.08273,2449.4,2448.9,4.08334]
[1728841529652,4.08283,2449.3,2448.8,0.8331]
[1728841529905,4.08313,2449.1,2448.5,4.91712]
[1728841530056,0.8231,2449.0,2448.6,4.08393]
[1728841530990,0.8231,2449.0,2448.7,4.08377]
[1728841531355,0.8231,2449.0,2448.6,4.08395]
[1728841532568,0.8231,2449.0,2448.5,4.08402]
[1728841532569,4.90642,2449.0,2448.5,4.08402]
[1728841532769,0.8231,2449.0,2448.6,4.08393]
[1728841533204,4.9059,2449.3,2448.6,4.16554591]
[1728841533376,8.33240957,2449.6,2448.9,4.08335]
[1728841533575,0.83324096,2449.5,2449.1,4.08312]
[1728841534525,4.081,2450.4,2449.3,0.55]
[1728841534674,8.16211,2450.4,2449.8,4.91497]
[1728841535009,0.42679407,2450.5,2449.4,0.0816329]
[1728841535010,4.08157,2450.1,2449.6,0.55]
[1728841535385,0.8231,2450.1,2449.6,0.55]
[1728841535586,0.8231,2450.1,2449.7,4.0821]
[1728841535956,3.8231,2450.1,2449.7,4.0821]
[1728841536293,3.8231,2450.1,2449.6,4.08229]
[1728841536294,8.695062,2450.1,2449.6,4.08229]
[1728841536472,4.08163,2450.0,2449.5,4.08235]
[1728841536675,4.08163,2450.0,2449.3,4.08267]
[1728841536904,4.08196,2449.8,2449.3,4.08267]
[1728841537225,4.08182,2449.9,2449.4,4.08252]
[1728841537508,4.08163,2450.0,2449.5,4.08242]
[1728841537509,8.16342,2450.0,2449.5,4.08242]
[1728841537712,8.16342,2450.0,2449.5,4.08245]
[1728841537713,4.08163,2450.0,2449.5,4.08245]
[1728841538275,3.8231,2450.1,2449.5,4.08245]
[1728841538484,3.8231,2450.1,2449.7,4.08211]
[1728841539370,3.0,2450.1,2449.7,4.08211]
[1728841540602,4.89873,2450.3,2449.8,4.08188]
[1728841540812,3.0,2450.2,2449.8,4.08188]
[1728841542337,4.08173,2450.0,2449.3,4.08264]
[1728841542488,4.08206,2449.8,2449.3,4.08264]
[1728841543489,4.08206,2449.8,2449.4,4.08262]
[1728841544692,4.08206,2449.8,2449.3,4.08264]
[1728841545335,0.8175,2450.1,2449.1,4.86152]
[1728841545336,4.08221,2449.7,2449.1,4.86152]
[1728841545638,4.08221,2449.7,2448.5,4.08405]
[1728841545639,4.08272,2449.4,2448.9,4.08335]
[1728841546231,4.0828,2449.3,2448.8,4.86199]
[1728841546805,4.0828,2449.3,2448.6,4.08384]
[1728841547124,4.08297,2449.2,2448.7,4.08367]
[1728841548463,4.0828,2449.3,2448.6,4.08384]
[1728841548669,4.90065,2449.1,2448.5,0.7785]
[1728841548819,4.08343,2449.0,2448.5,0.7785]
[1728841549661,4.08343,2449.0,2448.4,4.0842]
[1728841549954,4.08347,2448.9,2448.4,4.0842]
[1728841550336,4.08363,2448.8,2448.3,4.86295]
[1728841550661,4.0838,2448.7,2448.3,4.86295]
[1728841550871,4.0838,2448.7,2448.3,0.7785]
[1728841551111,4.0844,2448.4,2447.9,4.08505]
[1728841551367,4.0844,2448.4,2448.0,4.08493]
[1728841552375,4.90124,2448.8,2448.0,0.08169074]
[1728841552671,8.98497,2448.8,2448.3,4.08437]
[1728841552970,4.90123,2448.8,2448.4,4.08429]
[1728841553137,4.90123,2448.8,2448.3,4.08437]
[1728841553527,4.90123,2448.8,2448.3,8.25040042]
[1728841553764,4.90123,2448.8,2448.3,8.16872]
[1728841554064,4.90123,2448.8,2448.3,4.08435]
[1728841555070,4.0838,2448.7,2448.1,8.16935]
[1728841555274,4.0838,2448.7,2448.2,4.08462]
[1728841556733,3.51147887,2448.4,2447.6,4.89912]
[1728841556934,7.0848,2448.1,2447.6,0.8135]
[1728841558047,7.08464,2448.2,2447.6,4.89911]
[1728841558444,3.0,2448.0,2447.6,0.8135]
[1728841559456,4.33567887,2448.0,2446.9,1.22891495]
[1728841559797,4.08588,2447.5,2446.9,0.8135]
[1728841560084,4.08588,2447.5,2446.9,4.90018]
[1728841560311,4.0855,2447.7,2447.0,4.08663]
[1728841560583,0.8242,2448.0,2447.4,4.08586]
[1728841560887,4.08463,2448.2,2447.6,4.08549]
[1728841561100,4.08463,2448.2,2447.6,8.25273344]
[1728841561251,4.90877,2448.3,2447.6,8.25273344]
[1728841561252,4.90877,2448.3,2447.7,4.16706343]
[1728841561455,4.90877,2448.3,2447.7,0.08170343]
[1728841561456,4.90876,2448.3,2447.7,0.08170343]
[1728841561653,4.90876,2448.3,2447.7,4.16705076]
[1728841561654,8.99333,2448.3,2447.7,4.16705076]
[1728841561882,8.99337,2448.3,2447.8,4.08528]
[1728841562088,4.90876,2448.3,2447.8,4.08528]
[1728841562282,8.99331,2448.3,2447.8,4.08528]
[1728841562683,8.99331,2448.3,2447.6,4.08549]
[1728841562684,4.08465,2448.2,2447.6,8.171]
[1728841562996,4.08465,2448.2,2447.6,4.08549]
[1728841563176,4.08514,2447.9,2447.4,4.08584]
[1728841564264,4.08514,2447.9,2447.4,8.17168]
[1728841564900,4.08493,2448.1,2447.3,0.8135]
[1728841564901,4.08531,2447.8,2447.3,0.8135]
[1728841565390,4.08531,2447.8,2447.3,4.8996]
[1728841565600,4.08531,2447.8,2447.3,0.8135]
[1728841565903,4.08531,2447.8,2447.3,4.89963]
[1728841566341,8.1707,2447.8,2447.3,4.89963]
[1728841566542,4.08531,2447.8,2447.3,4.89963]
[1728841567447,4.08504,2448.0,2447.4,4.08581]
[1728841567648,4.08481,2448.1,2447.6,4.08561]
[1728841567809,4.08475,2448.2,2447.7,4.08544]
[1728841568011,8.16949,2448.2,2447.7,4.08544]
[1728841568206,4.08474,2448.2,2447.7,4.08544]
[1728841568520,4.0848,2448.1,2447.6,4.08561]
[1728841570014,4.08474,2448.2,2447.8,4.08527]
[1728841570223,4.08474,2448.2,2447.7,0.8135]
[1728841570224,4.0848,2448.1,2447.7,0.8135]
[1728841570427,8.99332,2448.3,2447.7,4.89891]
[1728841570609,4.08472,2448.2,2447.7,4.89891]
[1728841570810,4.0848,2448.1,2447.7,0.8135]
[1728841571311,4.0848,2448.1,2447.7,4.89894]
[1728841571544,4.90869,2448.3,2447.7,4.89894]
[1728841571749,4.08463,2448.2,2447.7,4.89894]
[1728841571953,4.08481,2448.1,2447.7,0.8135]
[1728841572864,4.08498,2448.0,2447.7,0.8135]
[1728841573016,4.08498,2448.0,2447.4,4.08586]
[1728841573017,4.08521,2447.9,2447.4,4.08596]
[1728841573348,4.08521,2447.9,2447.4,4.08587]
[1728841573582,8.17048,2447.9,2447.4,4.08587]
[1728841573751,8.17048,2447.9,2447.3,0.8135]
[1728841573752,4.08554,2447.7,2447.3,0.8135]
[1728841574413,4.08554,2447.7,2447.2,4.08618]
[1728841574842,4.08564,2447.6,2447.2,4.08618]
[1728841575044,4.08564,2447.6,2447.0,4.90002]
[1728841575045,4.08587,2447.5,2447.0,4.90002]
[1728841575273,4.08564,2447.6,2447.1,4.08643]
[1728841576448,8.17136,2447.6,2447.1,4.08643]
[1728841576654,4.08564,2447.6,2447.1,4.08643]
[1728841577630,4.08564,2447.6,2447.2,4.08628]
[1728841577831,4.9096,2447.8,2447.2,4.08619]
[1728841577832,4.08548,2447.7,2447.2,4.08619]
[1728841578341,4.08565,2447.6,2447.2,4.08619]
[1728841578959,4.9096,2447.8,2447.2,4.08619]
[1728841579159,4.08573,2447.6,2447.1,4.08646]
[1728841579459,4.08573,2447.6,2447.1,4.08645]
[1728841580224,8.17103,2447.7,2447.2,4.0862]
[1728841580539,4.08575,2447.6,2447.1,4.08642]
[1728841582234,4.08547,2447.7,2447.2,4.08629]
[1728841582432,0.8242,2447.8,2447.2,4.08629]
[1728841582632,0.7787,2448.1,2447.7,4.08538]
[1728841582840,0.7787,2448.1,2447.6,4.08561]
[1728841582841,4.86359,2448.1,2447.6,4.0855]
[1728841583030,8.94853,2448.1,2447.6,4.0855]
[1728841583250,8.94847,2448.1,2447.6,4.0855]
[1728841583865,4.86358,2448.1,2447.6,8.17105]
[1728841584630,4.86358,2448.1,2447.6,4.0855]
[1728841584870,8.94847,2448.1,2447.6,4.0855]
[1728841585329,4.86358,2448.1,2447.6,4.0855]
[1728841585537,4.86358,2448.1,2447.4,4.91224]
[1728841585538,4.08517,2447.9,2447.4,4.91224]
[1728841586271,4.08517,2447.9,2447.5,4.08577]
[1728841586968,8.17013,2448.0,2447.5,4.08578]
[1728841587128,4.08505,2448.0,2447.5,4.08578]
[1728841587324,8.17014,2448.0,2447.5,4.08578]
[1728841587742,4.08505,2448.0,2447.5,4.08578]
[1728841587967,4.08516,2447.9,2447.5,4.08578]
[1728841588670,4.08577,2447.6,2447.0,0.813]
[1728841588837,8.17146,2447.6,2447.1,4.08639]
[1728841589036,4.08571,2447.6,2447.1,4.08639]
[1728841589546,4.0859,2447.5,2447.0,4.89961]
[1728841589971,4.08571,2447.6,2447.0,4.08661]
[1728841590158,4.85398,2447.4,2446.9,4.08667]
[1728841590366,4.85398,2447.4,2446.8,0.813]
[1728841590367,4.08638,2447.2,2446.8,0.813]
[1728841590683,4.08638,2447.2,2446.4,0.85341086]
[1728841590684,0.768,2447.4,2446.9,4.0868]
[1728841590893,4.85402,2447.4,2446.9,4.0868]
[1728841591733,0.768,2447.4,2447.1,4.08636]
[1728841591971,3.894891,2447.9,2447.2,0.55]
[1728841591972,3.0,2447.9,2447.2,0.55]
[1728841592135,3.0,2447.8,2447.4,4.08589]
[1728841592353,4.08515,2447.9,2447.4,4.08589]
[1728841592637,0.768,2448.0,2447.3,4.08601]
[1728841592835,0.768,2448.0,2447.5,4.08569]
[1728841593081,0.768,2448.0,2447.6,0.813]
[1728841593386,0.768,2448.0,2447.6,4.89851]
[1728841593677,4.85238,2448.4,2447.8,4.08526]
[1728841593888,8.16877,2448.4,2447.8,4.08526]
[1728841594175,4.08419,2448.5,2447.9,4.08505]
[1728841594347,4.08419,2448.5,2447.9,8.17008]
[1728841594529,4.85204,2448.6,2448.1,4.08478]
[1728841594975,0.768,2448.6,2448.1,4.08478]
[1728841595189,0.768,2448.6,2448.1,4.89778]
[1728841595369,0.768,2448.6,2448.2,4.08461]
[1728841596051,0.768,2448.6,2448.1,4.89778]
[1728841596257,4.0842,2448.5,2447.9,8.17004]
[1728841596474,4.85199,2448.6,2448.0,4.08495]
[1728841596676,4.85199,2448.6,2448.1,4.08478]
[1728841597052,6.489562,2448.6,2448.1,4.08478]
[1728841599387,4.85199,2448.6,2448.1,8.16948]
[1728841599702,4.85199,2448.6,2448.1,4.0847]
[1728841601494,0.768,2448.6,2448.1,4.0847]
[1728841601694,0.768,2448.6,2448.2,4.08453]
[1728841601855,4.85198,2448.6,2448.1,8.16938]
[1728841602393,4.85198,2448.6,2448.2,4.08461]
[1728841602394,0.768,2448.6,2448.2,4.08461]
[1728841602755,0.768,2448.6,2448.3,8.16882]
[1728841602992,3.7822,2448.8,2448.3,4.08436]
[1728841603164,7.86585,2448.8,2448.3,4.08436]
[1728841603365,7.86585,2448.8,2448.4,4.08424]
[1728841603366,3.7822,2448.8,2448.4,4.08424]
[1728841604651,3.7822,2448.8,2448.4,8.16843]
[1728841604878,3.7822,2448.8,2448.5,4.08413]
[1728841605093,4.62756606,2449.0,2448.4,4.08419]
[1728841605301,4.08348,2448.9,2448.4,4.08419]
[1728841605652,4.08348,2448.9,2448.4,4.08418]
[1728841608006,4.08348,2448.9,2448.4,8.16838]
[1728841608210,3.7822,2449.0,2448.4,4.08418]
[1728841608422,5.77260087,2449.3,2448.8,4.87529]
[1728841608423,0.84536606,2449.3,2448.8,4.87529]
[1728841608697,0.7822,2449.4,2448.8,4.87529]
[1728841608903,4.08279,2449.3,2448.8,4.87529]
[1728841609309,4.08279,2449.3,2448.8,8.95884]
[1728841609862,4.08279,2449.3,2448.8,4.87529]
[1728841610185,4.08279,2449.3,2448.8,4.08349]
[1728841610589,4.08279,2449.3,2448.6,4.87563]
[1728841610590,0.894757,2449.3,2448.6,4.87563]
[1728841610899,4.08325,2449.1,2448.6,4.87563]
[1728841611584,4.0833,2449.0,2448.6,0.7918]
[1728841611921,4.8655,2449.0,2448.5,4.08413]
[1728841613689,0.7822,2449.0,2448.6,4.08391]
[1728841614119,0.7822,2449.0,2448.5,4.08413]
[1728841614335,0.7822,2449.0,2448.5,8.16818]
[1728841614833,0.7822,2449.0,2448.5,4.08405]
[1728841615051,0.7822,2449.0,2448.6,4.08393]
[1728841617338,4.90471,2449.2,2448.7,4.08367]
[1728841617518,4.90471,2449.2,2448.8,4.08363]
[1728841617720,0.8216,2449.2,2448.8,4.08363]
[1728841617912,4.08276,2449.4,2448.8,4.08363]
[1728841617913,0.8216,2449.4,2449.0,4.08328]
[1728841618340,0.8216,2449.6,2449.2,4.08296]
[1728841618541,4.90398,2449.6,2449.0,4.08328]
[1728841618709,4.90398,2449.6,2449.1,4.08311]
[1728841619760,4.90398,2449.6,2449.1,8.16615]
[1728841619956,4.90398,2449.6,2449.1,4.08304]
[1728841620247,4.08271,2449.4,2448.9,4.0834]
[1728841620434,4.8181816,2449.8,2449.1,0.8269]
[1728841620639,8.16411,2449.8,2449.2,4.08289]
[1728841620806,8.16411,2449.8,2449.2,8.16573]